[Event "*** Titled Tuesday Blitz"]
[Site "Chess.com"]
[Date "2018.07.03"]
[Round "1"]
[White "rasmussvane"]
[Black "Irochka83"]
[Result "1-0"]
[WhiteElo "2559"]
[BlackElo "2208"]
[TimeControl "180+2"]
[EndTime "13:06:26 PDT"]
[Termination "rasmussvane won by checkmate"]

1. Nf3 {[%clk 0:03:01.9]} 1... c5 {[%clk 0:02:58.6]} 2. c4 {[%clk 0:03:03]} 2...
Nc6 {[%clk 0:02:58.2]} 3. Nc3 {[%clk 0:03:04.2]} 3... g6 {[%clk 0:02:58.6]} 4.
e3 {[%clk 0:03:05.6]} 4... Nf6 {[%clk 0:02:58.9]} 5. d4 {[%clk 0:03:07.2]} 5...
cxd4 {[%clk 0:03:00.4]} 6. exd4 {[%clk 0:03:08.8]} 6... d5 {[%clk 0:03:01.2]} 7.
cxd5 {[%clk 0:03:10.7]} 7... Nxd5 {[%clk 0:03:02.3]} 8. Qb3 {[%clk 0:03:12.3]}
8... Nxc3 {[%clk 0:03:03.6]} 9. Bc4 {[%clk 0:03:13.1]} 9... Nd5 {[%clk
0:03:04.9]} 10. Bxd5 {[%clk 0:03:13.9]} 10... e6 {[%clk 0:03:06.5]} 11. Bxc6+
{[%clk 0:03:15.4]} 11... bxc6 {[%clk 0:03:06.9]} 12. O-O {[%clk 0:03:17]} 12...
Qd5 {[%clk 0:03:04]} 13. Be3 {[%clk 0:03:14.2]} 13... Qxb3 {[%clk 0:02:52.2]}
14. axb3 {[%clk 0:03:14.8]} 14... f6 {[%clk 0:02:32.3]} 15. Rfc1 {[%clk
0:03:15.1]} 15... Kd7 {[%clk 0:02:30.1]} 16. Nd2 {[%clk 0:03:07]} 16... Bd6
{[%clk 0:02:01.7]} 17. Ne4 {[%clk 0:02:56]} 17... Be7 {[%clk 0:01:58.5]} 18. Ra4
{[%clk 0:02:56.2]} 18... Bb7 {[%clk 0:01:38.1]} 19. Rca1 {[%clk 0:02:55.2]}
19... a6 {[%clk 0:01:35.7]} 20. f3 {[%clk 0:02:52.8]} 20... g5 {[%clk
0:01:22.6]} 21. Kf2 {[%clk 0:02:50.3]} 21... Bc8 {[%clk 0:01:10.3]} 22. Nc5+
{[%clk 0:02:40.6]} 22... Kc7 {[%clk 0:01:03.5]} 23. Bd2 {[%clk 0:02:28.3]} 23...
Rb8 {[%clk 0:00:57.5]} 24. Ba5+ {[%clk 0:02:01.6]} 24... Kd6 {[%clk 0:00:58.1]}
25. Bb4 {[%clk 0:02:03.2]} 25... Kd5 {[%clk 0:00:43.1]} 26. Nxa6 {[%clk
0:01:59.7]} 26... Bxa6 {[%clk 0:00:30.1]} 27. Bxe7 {[%clk 0:02:01.1]} 27... Bb5
{[%clk 0:00:30.2]} 28. Ra7 {[%clk 0:02:01.5]} 28... e5 {[%clk 0:00:23]} 29. Bxf6
{[%clk 0:02:00.8]} 29... Rhf8 {[%clk 0:00:17.4]} 30. dxe5 {[%clk 0:01:55.8]}
30... Ke6 {[%clk 0:00:14.5]} 31. Rd1 {[%clk 0:01:53.8]} 31... h6 {[%clk
0:00:14.1]} 32. Rd6+ {[%clk 0:01:51.8]} 32... Kf5 {[%clk 0:00:15.2]} 33. g4+
{[%clk 0:01:53.3]} 33... Kg6 {[%clk 0:00:14.5]} 34. Rg7# {[%clk 0:01:53.9]} 1-0

[Event "*** Titled Tuesday Blitz"]
[Site "Chess.com"]
[Date "2018.07.03"]
[Round "1"]
[White "pultineviciuspaulius"]
[Black "Arman_Hakemi"]
[Result "1-0"]
[WhiteElo "2603"]
[BlackElo "2281"]
[TimeControl "180+2"]
[EndTime "13:06:38 PDT"]
[Termination "pultineviciuspaulius won by resignation"]

1. d4 {[%clk 0:02:59.4]} 1... Nf6 {[%clk 0:03:00.1]} 2. c4 {[%clk 0:03:00.4]}
2... g6 {[%clk 0:03:00.2]} 3. Nc3 {[%clk 0:03:01.2]} 3... Bg7 {[%clk 0:03:00.7]}
4. e4 {[%clk 0:03:01.5]} 4... d6 {[%clk 0:03:01.9]} 5. Nge2 {[%clk 0:02:59.5]}
5... O-O {[%clk 0:03:01.4]} 6. Ng3 {[%clk 0:02:59.4]} 6... c5 {[%clk 0:02:36]}
7. d5 {[%clk 0:02:58.5]} 7... e6 {[%clk 0:02:34]} 8. Be2 {[%clk 0:02:59.4]} 8...
exd5 {[%clk 0:02:32.3]} 9. cxd5 {[%clk 0:03:01.3]} 9... a6 {[%clk 0:02:31.2]}
10. a4 {[%clk 0:03:01.6]} 10... h5 {[%clk 0:02:32.4]} 11. Bg5 {[%clk 0:03:01.2]}
11... Qc7 {[%clk 0:02:30.7]} 12. Qd2 {[%clk 0:03:01.6]} 12... Nbd7 {[%clk
0:02:30.8]} 13. O-O {[%clk 0:03:01.6]} 13... Re8 {[%clk 0:02:32]} 14. Rfe1
{[%clk 0:02:51.5]} 14... Rb8 {[%clk 0:02:32.7]} 15. Ra3 {[%clk 0:02:30.9]} 15...
Nh7 {[%clk 0:02:32.2]} 16. Bh6 {[%clk 0:02:30.7]} 16... Bf6 {[%clk 0:02:01.4]}
17. Bxh5 {[%clk 0:02:00.5]} 17... gxh5 {[%clk 0:01:55.2]} 18. Nxh5 {[%clk
0:02:02.4]} 18... Qd8 {[%clk 0:01:48.5]} 19. Ne2 {[%clk 0:02:02.7]} 19... Rxe4
{[%clk 0:01:41.1]} 20. Rg3+ {[%clk 0:02:02.6]} 20... Kh8 {[%clk 0:01:38.6]} 21.
Nxf6 {[%clk 0:02:03.2]} 21... Qxf6 {[%clk 0:01:30.5]} 22. Bg7+ {[%clk 0:02:04]}
22... Qxg7 {[%clk 0:01:32]} 23. Rxg7 {[%clk 0:02:05.6]} 23... Kxg7 {[%clk
0:01:33]} 24. Ng3 {[%clk 0:02:06.9]} 24... Rxe1+ {[%clk 0:01:33.5]} 25. Qxe1
{[%clk 0:02:08.8]} 25... Ndf6 {[%clk 0:01:35]} 26. Qe7 {[%clk 0:02:07.1]} 26...
Bd7 {[%clk 0:01:24.7]} 27. Qxd6 {[%clk 0:02:08]} 27... b5 {[%clk 0:01:20.8]} 28.
Qxb8 {[%clk 0:02:06.5]} 28... bxa4 {[%clk 0:01:19.9]} 29. Qe5 {[%clk 0:02:03.9]}
29... Kg6 {[%clk 0:01:19.2]} 30. h3 {[%clk 0:02:01.4]} 30... Nf8 {[%clk
0:01:19.9]} 31. f4 {[%clk 0:02:00]} 31... Ne8 {[%clk 0:01:18.8]} 32. Qg5+ {[%clk
0:01:57.5]} 32... Kh7 {[%clk 0:01:19.3]} 33. Qe7 {[%clk 0:01:55.3]} 33... Kg8
{[%clk 0:01:19.7]} 34. Nh5 {[%clk 0:01:55.9]} 34... c4 {[%clk 0:01:15.8]} 35. f5
{[%clk 0:01:49.1]} 35... c3 {[%clk 0:01:15.2]} 36. bxc3 {[%clk 0:01:49.3]} 36...
a3 {[%clk 0:01:15.4]} 37. Qxa3 {[%clk 0:01:47.2]} 37... Bxf5 {[%clk 0:01:16.7]}
38. Qe7 {[%clk 0:01:41.6]} 38... Bd7 {[%clk 0:01:17.4]} 39. c4 {[%clk
0:01:36.8]} 39... a5 {[%clk 0:01:18.7]} 40. c5 {[%clk 0:01:37.8]} 40... a4
{[%clk 0:01:19.9]} 41. c6 {[%clk 0:01:39.2]} 41... a3 {[%clk 0:01:21]} 42. cxd7
{[%clk 0:01:39]} 42... a2 {[%clk 0:01:21.8]} 43. Nf6+ {[%clk 0:01:35.6]} 43...
Nxf6 {[%clk 0:01:22.6]} 44. Qxf6 {[%clk 0:01:37.5]} 44... Nxd7 {[%clk
0:01:24.1]} 45. Qa1 {[%clk 0:01:35.7]} 45... Nb6 {[%clk 0:01:25.6]} 46. Qxa2
{[%clk 0:01:36.6]} 1-0

[Event "*** Titled Tuesday Blitz"]
[Site "Chess.com"]
[Date "2018.07.03"]
[Round "1"]
[White "LuisFSiles"]
[Black "jk13"]
[Result "0-1"]
[WhiteElo "2211"]
[BlackElo "2561"]
[TimeControl "180+2"]
[EndTime "13:06:52 PDT"]
[Termination "jk13 won by resignation"]

1. e4 {[%clk 0:02:59.4]} 1... e5 {[%clk 0:02:59.7]} 2. Nf3 {[%clk 0:02:53.6]}
2... Nc6 {[%clk 0:02:58.9]} 3. Bc4 {[%clk 0:02:50.3]} 3... Nf6 {[%clk
0:02:58.8]} 4. d3 {[%clk 0:02:49.9]} 4... Bc5 {[%clk 0:03:00.1]} 5. O-O {[%clk
0:02:44.3]} 5... O-O {[%clk 0:03:01.4]} 6. c3 {[%clk 0:02:38.2]} 6... d5 {[%clk
0:03:02.4]} 7. exd5 {[%clk 0:02:38.3]} 7... Nxd5 {[%clk 0:03:04.3]} 8. h3 {[%clk
0:02:23.2]} 8... Bf5 {[%clk 0:02:58.6]} 9. Re1 {[%clk 0:02:19.2]} 9... Nb6
{[%clk 0:02:58.2]} 10. Bb5 {[%clk 0:02:16.5]} 10... Bd6 {[%clk 0:02:59.7]} 11.
d4 {[%clk 0:01:59.8]} 11... exd4 {[%clk 0:02:57.8]} 12. Nxd4 {[%clk 0:02:00.6]}
12... Nxd4 {[%clk 0:02:57.5]} 13. Qxd4 {[%clk 0:02:01.8]} 13... a6 {[%clk
0:02:49.4]} 14. Bf1 {[%clk 0:01:58.1]} 14... Qd7 {[%clk 0:02:42.5]} 15. Bf4
{[%clk 0:01:50.1]} 15... Rad8 {[%clk 0:02:15.7]} 16. Bxd6 {[%clk 0:01:20.6]}
16... Qxd6 {[%clk 0:02:17.6]} 17. Qxd6 {[%clk 0:01:20.3]} 17... Rxd6 {[%clk
0:02:19.5]} 18. Na3 {[%clk 0:01:19.4]} 18... Rd2 {[%clk 0:02:19.9]} 19. Re5
{[%clk 0:01:10.2]} 19... Be6 {[%clk 0:02:17.1]} 20. Re2 {[%clk 0:01:07.8]} 20...
Rfd8 {[%clk 0:02:17.6]} 21. Rc1 {[%clk 0:00:58.3]} 21... Rxe2 {[%clk 0:02:08.7]}
22. Bxe2 {[%clk 0:00:58.6]} 22... Rd2 {[%clk 0:02:10.2]} 23. Rc2 {[%clk
0:00:58.9]} 23... Rxc2 {[%clk 0:02:11.2]} 24. Nxc2 {[%clk 0:01:00.8]} 24... Bxa2
{[%clk 0:02:12.5]} 25. Bf3 {[%clk 0:01:01.2]} 25... Bd5 {[%clk 0:02:13.2]} 26.
Bxd5 {[%clk 0:01:01.3]} 26... Nxd5 {[%clk 0:02:15.1]} 27. Kf1 {[%clk 0:01:02.7]}
27... Kf8 {[%clk 0:02:15.8]} 28. Ke2 {[%clk 0:01:04]} 28... Ke7 {[%clk
0:02:16.8]} 29. Kd3 {[%clk 0:01:05.3]} 29... Kd6 {[%clk 0:02:17]} 30. Nd4 {[%clk
0:01:06.9]} 30... g6 {[%clk 0:02:17.8]} 31. Nf3 {[%clk 0:01:05.2]} 31... Nf4+
{[%clk 0:02:18.7]} 32. Ke4 {[%clk 0:01:05.3]} 32... Nxg2 {[%clk 0:02:20.6]} 33.
Ng5 {[%clk 0:01:06.4]} 33... f6 {[%clk 0:02:11.5]} 34. Nxh7 {[%clk 0:01:05.1]}
34... Ke7 {[%clk 0:02:12.9]} 35. f4 {[%clk 0:00:57.8]} 35... Nh4 {[%clk
0:02:13.6]} 36. Kd5 {[%clk 0:00:51.9]} 36... Nf5 {[%clk 0:02:08.7]} 37. Nf8
{[%clk 0:00:51.1]} 37... Kxf8 {[%clk 0:02:09]} 38. Ke6 {[%clk 0:00:52.4]} 38...
Ke8 {[%clk 0:01:28]} 39. Kxf6 {[%clk 0:00:51.3]} 39... Ne7 {[%clk 0:01:29.7]}
40. h4 {[%clk 0:00:49.2]} 40... Kd7 {[%clk 0:01:30.9]} 0-1

[Event "*** Titled Tuesday Blitz"]
[Site "Chess.com"]
[Date "2018.07.03"]
[Round "1"]
[White "matiss90"]
[Black "VladimirBelous"]
[Result "0-1"]
[WhiteElo "2358"]
[BlackElo "2680"]
[TimeControl "180+2"]
[EndTime "13:07:05 PDT"]
[Termination "VladimirBelous won by checkmate"]

1. e4 {[%clk 0:03:00.7]} 1... c5 {[%clk 0:03:01.1]} 2. Nf3 {[%clk 0:03:01.6]}
2... Nc6 {[%clk 0:03:02.5]} 3. d4 {[%clk 0:03:02.5]} 3... cxd4 {[%clk
0:03:04.4]} 4. Nxd4 {[%clk 0:03:04.1]} 4... e5 {[%clk 0:03:05.9]} 5. Nb5 {[%clk
0:03:04.8]} 5... d6 {[%clk 0:03:07]} 6. N1c3 {[%clk 0:03:05.9]} 6... a6 {[%clk
0:03:08.4]} 7. Na3 {[%clk 0:03:07.5]} 7... b5 {[%clk 0:03:09.9]} 8. Nd5 {[%clk
0:03:08.6]} 8... Nge7 {[%clk 0:03:11.3]} 9. c4 {[%clk 0:03:08.6]} 9... Nxd5
{[%clk 0:03:12.6]} 10. exd5 {[%clk 0:03:09.9]} 10... Nd4 {[%clk 0:03:13.9]} 11.
Be3 {[%clk 0:02:57.8]} 11... Nf5 {[%clk 0:03:12.9]} 12. Bd2 {[%clk 0:02:51.5]}
12... g6 {[%clk 0:03:13.9]} 13. cxb5 {[%clk 0:02:47.2]} 13... Bg7 {[%clk
0:03:15.3]} 14. bxa6 {[%clk 0:02:47]} 14... O-O {[%clk 0:03:16.3]} 15. Be2
{[%clk 0:02:48.2]} 15... e4 {[%clk 0:03:12.5]} 16. Rb1 {[%clk 0:02:45.5]} 16...
e3 {[%clk 0:03:09.2]} 17. Bxe3 {[%clk 0:02:39.6]} 17... Nxe3 {[%clk 0:03:09.8]}
18. fxe3 {[%clk 0:02:40.7]} 18... Qh4+ {[%clk 0:03:04.7]} 19. g3 {[%clk
0:02:32.9]} 19... Qe4 {[%clk 0:03:04.6]} 20. O-O {[%clk 0:02:30.8]} 20... Qxe3+
{[%clk 0:03:02.7]} 21. Kg2 {[%clk 0:02:31.8]} 21... Bf5 {[%clk 0:03:00.5]} 22.
Rxf5 {[%clk 0:02:29.5]} 22... gxf5 {[%clk 0:03:02.4]} 23. Qd3 {[%clk 0:02:04.9]}
23... Qg5 {[%clk 0:02:47.5]} 24. b4 {[%clk 0:01:49.6]} 24... Rfe8 {[%clk
0:02:45.4]} 25. b5 {[%clk 0:01:38.6]} 25... Re3 {[%clk 0:02:44.6]} 26. b6 {[%clk
0:01:31.2]} 26... Rxd3 {[%clk 0:02:44.1]} 27. b7 {[%clk 0:01:18.6]} 27... Rxa6
{[%clk 0:02:40.5]} 28. b8=Q+ {[%clk 0:01:18.2]} 28... Bf8 {[%clk 0:02:42]} 29.
Bxd3 {[%clk 0:01:17.2]} 29... Qd2+ {[%clk 0:02:42.4]} 30. Kh3 {[%clk 0:01:17.2]}
30... Rxa3 {[%clk 0:02:36.9]} 31. Bxf5 {[%clk 0:00:57.8]} 31... Rxa2 {[%clk
0:02:34.6]} 32. Qc8 {[%clk 0:00:15.7]} 32... h5 {[%clk 0:02:28.4]} 33. Kh4
{[%clk 0:00:07.1]} 33... Kg7 {[%clk 0:02:27.4]} 34. h3 {[%clk 0:00:02.5]} 34...
Be7+ {[%clk 0:02:27.8]} 35. Kxh5 {[%clk 0:00:03.8]} 35... Qh6+ {[%clk
0:02:29.6]} 36. Kg4 {[%clk 0:00:04.6]} 36... Qg5+ {[%clk 0:02:21.2]} 37. Kf3
{[%clk 0:00:05.3]} 37... Ra3+ {[%clk 0:02:15.1]} 38. Ke2 {[%clk 0:00:06.1]}
38... Re3+ {[%clk 0:02:12.7]} 39. Kd1 {[%clk 0:00:04.7]} 39... Qxg3 {[%clk
0:02:12.1]} 40. Qc2 {[%clk 0:00:03.9]} 40... Qe1# {[%clk 0:02:11.1]} 0-1

[Event "*** Titled Tuesday Blitz"]
[Site "Chess.com"]
[Date "2018.07.03"]
[Round "1"]
[White "ozates"]
[Black "maciek_92"]
[Result "1-0"]
[WhiteElo "2344"]
[BlackElo "2641"]
[TimeControl "180+2"]
[EndTime "13:07:10 PDT"]
[Termination "ozates won by resignation"]

1. e4 {[%clk 0:02:43.9]} 1... e5 {[%clk 0:03:00.2]} 2. Nf3 {[%clk 0:02:44.4]}
2... Nc6 {[%clk 0:02:59.9]} 3. Bc4 {[%clk 0:02:43.5]} 3... Bc5 {[%clk
0:02:58.6]} 4. c3 {[%clk 0:02:44.1]} 4... Nf6 {[%clk 0:02:59]} 5. d3 {[%clk
0:02:45.2]} 5... O-O {[%clk 0:02:57.3]} 6. O-O {[%clk 0:02:44.3]} 6... d6 {[%clk
0:02:54.7]} 7. Bb3 {[%clk 0:02:44.6]} 7... a6 {[%clk 0:02:49]} 8. Nbd2 {[%clk
0:02:45]} 8... Be6 {[%clk 0:02:39.2]} 9. Bc2 {[%clk 0:02:44.6]} 9... d5 {[%clk
0:02:37.8]} 10. Re1 {[%clk 0:02:44.9]} 10... d4 {[%clk 0:02:29.2]} 11. Nf1
{[%clk 0:02:44.5]} 11... h6 {[%clk 0:02:07.8]} 12. Ng3 {[%clk 0:02:44.8]} 12...
Qd7 {[%clk 0:02:06.4]} 13. Nh4 {[%clk 0:02:38.2]} 13... Ne7 {[%clk 0:02:01.9]}
14. Nhf5 {[%clk 0:02:27.5]} 14... Bxf5 {[%clk 0:01:53.7]} 15. exf5 {[%clk
0:02:29.4]} 15... dxc3 {[%clk 0:01:51.9]} 16. bxc3 {[%clk 0:02:26.2]} 16... Ned5
{[%clk 0:01:42.1]} 17. Bd2 {[%clk 0:02:18.6]} 17... Rfe8 {[%clk 0:01:41.5]} 18.
Qf3 {[%clk 0:02:19.1]} 18... Bb6 {[%clk 0:01:38.6]} 19. Bb3 {[%clk 0:02:18.4]}
19... Ba5 {[%clk 0:01:38.7]} 20. Ne4 {[%clk 0:02:14.3]} 20... Nxe4 {[%clk
0:01:35.5]} 21. dxe4 {[%clk 0:02:15.9]} 21... Nf6 {[%clk 0:01:35.5]} 22. Rad1
{[%clk 0:01:59.3]} 22... Qc6 {[%clk 0:01:33.4]} 23. g4 {[%clk 0:01:09.6]} 23...
Rad8 {[%clk 0:01:30.7]} 24. h4 {[%clk 0:01:07.2]} 24... Rxd2 {[%clk 0:01:26.7]}
25. Rxd2 {[%clk 0:01:06.9]} 25... Qxc3 {[%clk 0:01:28.6]} 26. Qxc3 {[%clk
0:00:51.2]} 26... Bxc3 {[%clk 0:01:30.5]} 27. Red1 {[%clk 0:00:48.4]} 27... Bxd2
{[%clk 0:01:30.8]} 28. Rxd2 {[%clk 0:00:50.3]} 28... Re7 {[%clk 0:01:28.2]} 29.
g5 {[%clk 0:00:42.9]} 29... hxg5 {[%clk 0:01:26.4]} 30. hxg5 {[%clk 0:00:44.8]}
30... Nxe4 {[%clk 0:01:28]} 31. Rd8+ {[%clk 0:00:45.4]} 31... Kh7 {[%clk
0:01:28.8]} 32. Bxf7 {[%clk 0:00:45.4]} 32... g6 {[%clk 0:01:14.4]} 33. fxg6+
{[%clk 0:00:39.5]} 1-0

[Event "*** Titled Tuesday Blitz"]
[Site "Chess.com"]
[Date "2018.07.03"]
[Round "1"]
[White "Keures"]
[Black "PlotnikovPavel"]
[Result "1-0"]
[WhiteElo "2142"]
[BlackElo "2494"]
[TimeControl "180+2"]
[EndTime "13:07:15 PDT"]
[Termination "Keures won by checkmate"]

1. d4 {[%clk 0:03:01.9]} 1... e6 {[%clk 0:03:01.2]} 2. c4 {[%clk 0:03:02.6]}
2... f5 {[%clk 0:03:01.9]} 3. g3 {[%clk 0:03:03.2]} 3... Nf6 {[%clk 0:03:02.8]}
4. Bg2 {[%clk 0:03:04.3]} 4... Bb4+ {[%clk 0:03:03.5]} 5. Bd2 {[%clk 0:03:04.8]}
5... Qe7 {[%clk 0:03:03.3]} 6. a3 {[%clk 0:03:05.4]} 6... Bxd2+ {[%clk
0:03:03.5]} 7. Qxd2 {[%clk 0:03:06.4]} 7... O-O {[%clk 0:03:04.9]} 8. Nc3 {[%clk
0:03:07.4]} 8... d6 {[%clk 0:03:06.1]} 9. e4 {[%clk 0:02:57.5]} 9... e5 {[%clk
0:02:55.5]} 10. d5 {[%clk 0:02:53.7]} 10... fxe4 {[%clk 0:02:51.3]} 11. Nxe4
{[%clk 0:02:49]} 11... Bf5 {[%clk 0:02:52.4]} 12. Nxf6+ {[%clk 0:02:46.9]} 12...
Qxf6 {[%clk 0:02:52.9]} 13. Ne2 {[%clk 0:02:35.9]} 13... Bd3 {[%clk 0:02:28.4]}
14. O-O {[%clk 0:02:03.7]} 14... Bxc4 {[%clk 0:02:28]} 15. Rac1 {[%clk
0:02:05.2]} 15... Bxe2 {[%clk 0:02:27.6]} 16. Qxe2 {[%clk 0:02:04.8]} 16... Na6
{[%clk 0:02:27.4]} 17. Qb5 {[%clk 0:01:59.6]} 17... Rab8 {[%clk 0:02:25.4]} 18.
b4 {[%clk 0:01:55.5]} 18... h5 {[%clk 0:02:22.7]} 19. h4 {[%clk 0:01:54.5]}
19... g5 {[%clk 0:02:15.5]} 20. hxg5 {[%clk 0:01:52.5]} 20... Qxg5 {[%clk
0:02:17]} 21. Bh3 {[%clk 0:01:37.6]} 21... h4 {[%clk 0:02:09.7]} 22. Be6+ {[%clk
0:01:37.7]} 22... Kg7 {[%clk 0:02:07.3]} 23. Kg2 {[%clk 0:01:37.1]} 23... hxg3
{[%clk 0:02:00.6]} 24. fxg3 {[%clk 0:01:28.4]} 24... Qe3 {[%clk 0:01:20.5]} 25.
Qd7+ {[%clk 0:01:21.4]} 25... Kg6 {[%clk 0:01:17.7]} 26. Bf7+ {[%clk 0:01:12.2]}
26... Kg7 {[%clk 0:01:13.4]} 27. Be8+ {[%clk 0:00:58.7]} 27... Kh6 {[%clk
0:01:07.6]} 28. Rh1+ {[%clk 0:00:43.2]} 28... Kg5 {[%clk 0:01:07.3]} 29. Rh5+
{[%clk 0:00:27.6]} 29... Kf6 {[%clk 0:01:04.3]} 30. Rf1+ {[%clk 0:00:25.7]}
30... Qf4 {[%clk 0:01:04]} 31. Qe6+ {[%clk 0:00:23.5]} 31... Kg7 {[%clk
0:01:04]} 32. gxf4 {[%clk 0:00:24.7]} 32... Rbxe8 {[%clk 0:01:03.5]} 33. Rg5+
{[%clk 0:00:23.9]} 33... Kh7 {[%clk 0:01:03.6]} 34. Rh1# {[%clk 0:00:24.8]} 1-0

[Event "*** Titled Tuesday Blitz"]
[Site "Chess.com"]
[Date "2018.07.03"]
[Round "1"]
[White "TST2014"]
[Black "VitaliyBernadskiy"]
[Result "0-1"]
[WhiteElo "2384"]
[BlackElo "2711"]
[TimeControl "180+2"]
[EndTime "13:07:23 PDT"]
[Termination "VitaliyBernadskiy won by resignation"]

1. d4 {[%clk 0:03:00.3]} 1... e6 {[%clk 0:02:58.7]} 2. c4 {[%clk 0:03:00.8]}
2... Nf6 {[%clk 0:02:57.8]} 3. Nf3 {[%clk 0:02:59.8]} 3... b6 {[%clk 0:02:57.8]}
4. a3 {[%clk 0:02:59.9]} 4... Bb7 {[%clk 0:02:58]} 5. Nc3 {[%clk 0:03:00.3]}
5... Be7 {[%clk 0:02:57.5]} 6. d5 {[%clk 0:02:59.5]} 6... O-O {[%clk 0:02:58]}
7. e4 {[%clk 0:02:59.9]} 7... exd5 {[%clk 0:02:56.9]} 8. cxd5 {[%clk 0:02:59.8]}
8... Re8 {[%clk 0:02:57.1]} 9. Bd3 {[%clk 0:02:50.6]} 9... c6 {[%clk 0:02:49.8]}
10. O-O {[%clk 0:02:49.3]} 10... cxd5 {[%clk 0:02:50.5]} 11. exd5 {[%clk
0:02:50.2]} 11... Bf8 {[%clk 0:02:45.5]} 12. Bg5 {[%clk 0:02:48.2]} 12... d6
{[%clk 0:02:38.2]} 13. Bb5 {[%clk 0:02:44.7]} 13... Nbd7 {[%clk 0:02:36.4]} 14.
Bxd7 {[%clk 0:02:44.9]} 14... Qxd7 {[%clk 0:02:38.3]} 15. Bxf6 {[%clk
0:02:45.9]} 15... gxf6 {[%clk 0:02:39.9]} 16. Qd3 {[%clk 0:02:37.5]} 16... Qg4
{[%clk 0:02:33.2]} 17. h3 {[%clk 0:02:35.6]} 17... Qg6 {[%clk 0:02:33.7]} 18.
Qd4 {[%clk 0:02:30.8]} 18... Bg7 {[%clk 0:02:24.8]} 19. Nb5 {[%clk 0:02:18.2]}
19... f5 {[%clk 0:02:18.4]} 20. Qf4 {[%clk 0:02:14.4]} 20... Be5 {[%clk
0:02:03.1]} 21. Nxe5 {[%clk 0:02:11.9]} 21... dxe5 {[%clk 0:02:04.9]} 22. Qf3
{[%clk 0:02:08.3]} 22... Rad8 {[%clk 0:02:05.5]} 23. Rfd1 {[%clk 0:02:06.1]}
23... e4 {[%clk 0:02:00.3]} 24. Qb3 {[%clk 0:02:02.9]} 24... f4 {[%clk
0:01:57.8]} 25. f3 {[%clk 0:01:49.5]} 25... Re5 {[%clk 0:01:47.2]} 26. fxe4
{[%clk 0:01:46.3]} 26... Rxe4 {[%clk 0:01:42.9]} 27. Nc3 {[%clk 0:01:40.3]}
27... f3 {[%clk 0:01:39.4]} 28. Rd2 {[%clk 0:01:39.5]} 28... Re3 {[%clk
0:01:35.2]} 29. Qc2 {[%clk 0:01:26.6]} 29... Qg3 {[%clk 0:01:18.1]} 30. Rf1
{[%clk 0:01:21.6]} 30... Ba6 {[%clk 0:01:09.6]} 31. Rfd1 {[%clk 0:01:03.4]}
31... Rde8 {[%clk 0:01:07.2]} 32. Qc1 {[%clk 0:00:16.7]} 32... Re1+ {[%clk
0:01:05.2]} 33. Rxe1 {[%clk 0:00:17.7]} 33... Rxe1+ {[%clk 0:01:06]} 34. Qxe1
{[%clk 0:00:19.4]} 34... Qxe1+ {[%clk 0:01:06.9]} 35. Kh2 {[%clk 0:00:21]} 35...
Qxd2 {[%clk 0:01:08.2]} 0-1

[Event "*** Titled Tuesday Blitz"]
[Site "Chess.com"]
[Date "2018.07.03"]
[Round "1"]
[White "DishonorOnYourCow"]
[Black "GMHess"]
[Result "0-1"]
[WhiteElo "2267"]
[BlackElo "2596"]
[TimeControl "180+2"]
[EndTime "13:07:46 PDT"]
[Termination "GMHess won by resignation"]

1. d4 {[%clk 0:02:59.7]} 1... g6 {[%clk 0:02:55.8]} 2. c4 {[%clk 0:03:00.1]}
2... Bg7 {[%clk 0:02:57.1]} 3. Nc3 {[%clk 0:03:00.8]} 3... c5 {[%clk 0:02:54.9]}
4. d5 {[%clk 0:03:01.3]} 4... Bxc3+ {[%clk 0:02:55.4]} 5. bxc3 {[%clk
0:03:02.2]} 5... f5 {[%clk 0:02:57.3]} 6. h4 {[%clk 0:03:01]} 6... Nf6 {[%clk
0:02:57.8]} 7. h5 {[%clk 0:02:48.8]} 7... Rg8 {[%clk 0:02:56.5]} 8. hxg6 {[%clk
0:02:49.4]} 8... hxg6 {[%clk 0:02:54.4]} 9. Nf3 {[%clk 0:02:49.9]} 9... Qa5
{[%clk 0:02:55.5]} 10. Bd2 {[%clk 0:02:40]} 10... d6 {[%clk 0:02:55.3]} 11. e3
{[%clk 0:02:38.4]} 11... Nbd7 {[%clk 0:02:56.5]} 12. Be2 {[%clk 0:02:36.2]}
12... Nb6 {[%clk 0:02:57.7]} 13. Qb3 {[%clk 0:02:34.4]} 13... Bd7 {[%clk
0:02:58.9]} 14. Ng5 {[%clk 0:02:33.9]} 14... O-O-O {[%clk 0:02:59.6]} 15. Rb1
{[%clk 0:02:16.5]} 15... Rh8 {[%clk 0:02:51.1]} 16. O-O {[%clk 0:02:14.2]} 16...
Ne4 {[%clk 0:02:21.3]} 17. Nxe4 {[%clk 0:02:02.7]} 17... fxe4 {[%clk 0:02:23.2]}
18. f3 {[%clk 0:02:03.7]} 18... exf3 {[%clk 0:02:20.6]} 19. Bxf3 {[%clk
0:02:04.4]} 19... Rh4 {[%clk 0:02:12.4]} 20. Be2 {[%clk 0:01:39.8]} 20... Rdh8
{[%clk 0:02:07.9]} 21. Rf7 {[%clk 0:01:29.5]} 21... Bf5 {[%clk 0:01:25.9]} 22.
Rf1 {[%clk 0:01:00.9]} 22... Kd8 {[%clk 0:01:26.4]} 23. e4 {[%clk 0:00:38.8]}
23... Rxe4 {[%clk 0:01:13.7]} 24. Bd3 {[%clk 0:00:38]} 24... Reh4 {[%clk
0:01:04.8]} 25. Bg5 {[%clk 0:00:38.7]} 25... Rh1+ {[%clk 0:00:57.2]} 26. Kf2
{[%clk 0:00:39.6]} 26... Bxd3 {[%clk 0:00:51.3]} 27. Rxh1 {[%clk 0:00:20.9]}
27... Rxh1 {[%clk 0:00:53.2]} 28. Rxe7 {[%clk 0:00:20.6]} 28... Rf1+ {[%clk
0:00:27.3]} 29. Kg3 {[%clk 0:00:21.3]} 29... Rf5 {[%clk 0:00:25.5]} 30. Kg4
{[%clk 0:00:19.1]} 30... Rxg5+ {[%clk 0:00:26.5]} 31. Kxg5 {[%clk 0:00:19.5]}
31... Kxe7 {[%clk 0:00:28.4]} 32. Qd1 {[%clk 0:00:18.3]} 32... Qxc3 {[%clk
0:00:29.1]} 0-1